bitfinex/quotes_SOLUSD_20251214
["timestamp","ask_amount","ask_price","bid_price","bid_amount"]
[1765741201243,8.37833006,130.24,130.21,0.66]
[1765741202061,7.67833006,130.24,130.21,0.66]
[1765741202261,112.3776315,130.25,130.21,18.8207258]
[1765741202437,112.3776315,130.25,130.22,0.66]
[1765741202957,113.0776315,130.25,130.22,0.66]
[1765741203364,112.3776315,130.25,130.22,0.66]
[1765741203566,8.37827523,130.24,130.21,8.42]
[1765741203973,0.7,130.23,130.21,8.42]
[1765741204544,7.67827523,130.24,130.21,8.42]
[1765741204856,8.37827523,130.24,130.22,0.66]
[1765741205038,7.67827523,130.24,130.22,0.66]
[1765741205240,8.37827523,130.24,130.22,0.66]
[1765741209572,8.37827523,130.24,130.21,9.14]
[1765741209749,7.67827523,130.24,130.21,9.14]
[1765741210072,8.38827523,130.24,130.22,0.72]
[1765741211114,7.67827523,130.24,130.21,8.42]
[1765741211316,0.71,130.23,130.21,9.14]
[1765741212113,8.3891016,130.23,130.21,8.42]
[1765741212480,0.71,130.22,130.21,8.42]
[1765741213480,7.6791016,130.23,130.21,9.14]
[1765741213817,8.3891016,130.23,130.21,9.14]
[1765741214006,8.3891016,130.23,130.21,8.42]
[1765741214203,134.37590205,130.25,130.21,8.42]
[1765741214204,7.67815464,130.24,130.21,8.42]
[1765741214386,8.38815464,130.24,130.21,8.42]
[1765741214708,8.38815464,130.24,130.21,9.14]
[1765741218607,7.67815464,130.24,130.21,9.14]
[1765741218914,8.38815464,130.24,130.21,9.14]
[1765741222327,0.71,130.23,130.21,8.42]
[1765741222534,0.71,130.23,130.21,9.14]
[1765741223024,8.38815464,130.24,130.21,9.14]
[1765741223414,0.71,130.23,130.2,7.68040935]
[1765741224228,8.38910005,130.23,130.19,9.12]
[1765741224737,0.71,130.22,130.19,9.12]
[1765741225941,8.38960345,130.22,130.19,9.12]
[1765741226136,8.38960345,130.22,130.19,11.18106687]
[1765741226839,8.38960345,130.22,130.2,0.69]
[1765741228827,8.38960345,130.22,130.19,11.15106687]
[1765741229033,8.35813267,130.24,130.2,2.75106687]
[1765741229443,8.35813267,130.24,130.21,0.67]
[1765741230738,7.67813267,130.24,130.21,0.67]
[1765741230945,8.32927964,130.23,130.2,0.67]
[1765741231250,8.32927964,130.23,130.19,8.4]
[1765741231544,2.71106687,130.22,130.15,0.67000001]
[1765741231718,13.0470912,130.2,130.15,11.13106688]
[1765741232119,0.65,130.19,130.16,0.67]
[1765741232341,13.6970912,130.2,130.16,2.73106687]
[1765741232544,0.65,130.2,130.17,2.06106687]
[1765741232718,0.65,130.2,130.17,2.73106687]
[1765741232918,8.33057154,130.2,130.17,0.67]
[1765741233644,7.68057154,130.2,130.17,0.67]
[1765741233867,0.65,130.19,130.16,2.73106687]
[1765741234353,0.65,130.19,130.15,8.40000001]
[1765741234520,0.65,130.19,130.15,9.07000001]
[1765741234721,0.65,130.19,130.15,1e-08]
[1765741234953,2.71106687,130.19,130.15,1e-08]
[1765741235160,7.68167153,130.18,130.16,0.67]
[1765741235455,8.33167153,130.18,130.15,1e-08]
[1765741235752,0.65,130.17,130.15,1e-08]
[1765741236243,8.33262615,130.17,130.15,1e-08]
[1765741237347,0.65,130.16,130.15,1e-08]
[1765741239554,8.33285187,130.16,130.15,1e-08]
[1765741243023,7.68285187,130.16,130.15,1e-08]
[1765741243253,8.33285187,130.16,130.15,1e-08]
[1765741244934,7.68285187,130.16,130.15,1e-08]
[1765741245443,7.68285187,130.16,130.15,0.67000001]
[1765741246157,8.33285187,130.16,130.15,1e-08]
[1765741247354,7.68285187,130.16,130.15,1e-08]
[1765741247574,7.68285187,130.16,130.15,0.67000001]
[1765741247860,7.68285187,130.16,130.15,1e-08]
[1765741248061,8.33285187,130.16,130.15,1e-08]
[1765741260184,113.03285187,130.16,130.15,1e-08]
[1765741260389,133.7702055,130.16,130.15,1e-08]
[1765741262581,130.54711993,130.16,130.15,1e-08]
[1765741262752,121.45285187,130.16,130.15,1e-08]
[1765741262949,113.03285187,130.16,130.15,1e-08]
[1765741264684,8.33285187,130.16,130.15,1e-08]
[1765741266251,7.68285187,130.16,130.15,1e-08]
[1765741266851,7.68285187,130.16,130.15,0.67000001]
[1765741267492,7.68285187,130.16,130.15,1e-08]
[1765741267874,8.35285187,130.16,130.15,1e-08]
[1765741268103,7.68285187,130.16,130.15,1e-08]
[1765741268404,20.72947251,130.17,130.15,3.89308558]
[1765741268695,20.72947251,130.17,130.15,0.67000001]
[1765741269574,0.67,130.2,130.15,3.89308558]
[1765741269898,8.35049155,130.2,130.16,3.22308557]
[1765741270092,8.35049155,130.2,130.16,3.89308557]
[1765741270407,8.35049155,130.2,130.17,0.67]
[1765741271503,7.68049155,130.2,130.17,0.67]
[1765741271801,7.68049155,130.2,130.17,3.89308557]
[1765741272210,8.35049155,130.2,130.17,3.89308557]
[1765741272410,0.67,130.19,130.17,0.67]
[1765741272572,8.35049155,130.2,130.17,0.67]
[1765741274009,7.68049155,130.2,130.17,3.89308557]
[1765741274303,8.35049155,130.2,130.17,3.89308557]
[1765741274882,8.35049155,130.2,130.18,0.67]
[1765741275086,8.35049155,130.2,130.17,3.89308557]
[1765741275308,8.35049155,130.2,130.17,0.67]
[1765741276503,0.67,130.19,130.15,3.89214024]
[1765741277004,0.67,130.19,130.15,0.67000001]
[1765741277201,26.88585035,130.18,130.15,1e-08]
[1765741277394,0.67,130.17,130.15,1e-08]
[1765741279306,7.68285187,130.16,130.15,1e-08]
[1765741280602,0.67,130.17,130.15,0.67000001]
[1765741280603,7.68243978,130.17,130.15,0.67000001]
[1765741280802,8.35243978,130.17,130.15,1e-08]
[1765741283921,0.67,130.16,130.15,1e-08]
[1765741284287,0.67,130.17,130.15,1e-08]
[1765741285913,7.68285187,130.16,130.15,1e-08]
[1765741287130,7.68226165,130.17,130.15,1e-08]
[1765741287424,8.36226165,130.17,130.15,1e-08]
[1765741287722,0.68,130.16,130.15,1e-08]
[1765741288223,8.36285187,130.16,130.15,1e-08]
[1765741289319,7.68226165,130.17,130.15,0.69000001]
[1765741291142,104.7,130.18,130.15,11.59551436]
[1765741291340,16.10128507,130.19,130.15,11.59551436]
[1765741291639,16.78128507,130.19,130.16,0.69]
[1765741292737,7.68003614,130.21,130.17,3.22214023]
[1765741293127,7.68003614,130.21,130.18,0.69]
[1765741293651,8.36003614,130.21,130.18,0.69]
[1765741295937,7.68003614,130.21,130.17,3.22214023]
[1765741296113,8.36084936,130.2,130.17,3.91214023]
[1765741296314,8.36084936,130.2,130.17,3.22214023]
[1765741296513,8.36084936,130.2,130.17,3.91214023]
[1765741298450,8.36084936,130.2,130.17,3.22214023]
[1765741298621,8.35990169,130.21,130.18,0.69]
[1765741299941,8.36077501,130.2,130.18,0.69]
[1765741300144,7.68077501,130.2,130.18,0.69]
[1765741305158,7.67990169,130.21,130.18,0.69]
[1765741305559,8.35990169,130.21,130.18,0.69]
[1765741309837,0.68,130.2,130.17,3.22214023]
[1765741310041,8.36083137,130.2,130.17,3.91214023]
[1765741310351,8.36083137,130.2,130.17,0.69]
[1765741310662,0.68,130.19,130.17,0.69]
[1765741311063,8.36083137,130.2,130.17,0.69]
[1765741311439,8.36083137,130.2,130.17,2.75193442]
[1765741312060,7.67990169,130.21,130.17,2.75193442]
[1765741312249,8.35990169,130.21,130.18,0.69]
[1765741312561,7.67990169,130.21,130.18,0.69]
[1765741312861,8.35990169,130.21,130.18,0.69]
[1765741313163,7.67990169,130.21,130.18,0.69]
[1765741316870,8.34990169,130.21,130.18,0.69]
[1765741319371,0.67,130.2,130.18,0.69]
[1765741319544,7.67990169,130.21,130.18,0.69]
[1765741320570,125.42640917,130.22,130.19,2.06178479]
[1765741321040,112.37931797,130.22,130.2,0.71]
[1765741323166,7.67896377,130.23,130.2,2.77178479]
[1765741323553,7.67838528,130.24,130.21,0.71]
[1765741325050,8.34838528,130.24,130.21,0.71]
[1765741325251,0.67,130.23,130.2,7.68041029]
[1765741325476,0.67,130.23,130.2,8.39041029]
[1765741325852,2.73178479,130.23,130.18,18.87302628]
[1765741326052,0.67,130.22,130.19,0.71]
[1765741327159,8.34952377,130.22,130.19,0.71]
[1765741332776,7.67872226,130.23,130.19,0.71]
[1765741332987,0.67,130.22,130.19,2.77178479]
[1765741333286,0.67,130.22,130.19,0.71]
[1765741335076,8.34957414,130.22,130.19,0.71]
[1765741343794,8.34957414,130.22,130.19,2.77178479]
[1765741344205,8.34957414,130.22,130.19,0.71]
[1765741344693,0.67,130.21,130.16,2.77178479]
[1765741344994,7.68049155,130.2,130.15,18.87517933]
[1765741345190,7.68049155,130.2,130.16,2.06178479]
[1765741345394,8.3501433,130.21,130.17,2.06178479]
[1765741345710,8.3501433,130.21,130.18,2.06178479]
[1765741345871,8.3501433,130.21,130.18,2.77178479]
[1765741347294,8.3301433,130.21,130.19,0.69]
[1765741349094,7.6801433,130.21,130.19,0.69]
[1765741349398,7.6801433,130.21,130.19,2.75150042]
[1765741349897,13.0470912,130.25,130.2,2.75150042]
[1765741350094,7.68199746,130.24,130.22,2.06150042]
[1765741350476,13.0470912,130.25,130.23,0.69]
[1765741350875,21.37516123,130.25,130.23,0.69]
[1765741351070,21.37516123,130.25,130.22,2.06150042]
[1765741351071,0.65,130.24,130.21,0.69]
[1765741351280,0.65,130.24,130.21,2.75150042]
[1765741351480,0.65,130.24,130.22,0.69]
[1765741353181,7.67780796,130.25,130.22,0.69]
[1765741353390,8.32780796,130.25,130.22,0.69]
[1765741353588,0.65,130.25,130.22,10.43051943]
[1765741353796,0.65,130.25,130.23,2.06150042]
[1765741353992,8.32779346,130.25,130.22,0.69]
[1765741354580,7.67779346,130.25,130.21,18.16116842]
[1765741354799,0.65,130.24,130.21,18.85116842]
[1765741354998,0.65,130.24,130.22,0.69]
[1765741355190,8.32779346,130.25,130.22,0.69]
[1765741355803,7.67779346,130.25,130.22,0.69]
[1765741356011,0.65,130.24,130.22,0.69]
[1765741360004,7.67779346,130.25,130.22,2.75150042]
[1765741360210,8.32723229,130.26,130.23,2.06150042]
[1765741360394,8.32723229,130.26,130.23,2.75150042]
[1765741360708,7.67723229,130.26,130.23,2.75150042]
[1765741360908,0.65,130.25,130.23,2.75150042]
[1765741362811,0.65,130.25,130.23,0.69]
[1765741370211,7.67723229,130.26,130.23,0.69]
[1765741370431,0.65,130.25,130.23,0.69]
[1765741371226,0.65,130.25,130.22,10.43058631]
[1765741371423,0.65,130.25,130.23,0.69]
[1765741377511,7.67723229,130.26,130.23,0.69]
[1765741377711,7.67723229,130.26,130.23,11.5877402]
[1765741378015,7.6763739,130.27,130.22,10.89836116]
[1765741378216,7.6763739,130.27,130.23,8.4]
[1765741378394,8.3963739,130.27,130.23,12.31905309]
[1765741378597,0.72,130.26,130.24,0.7]
[1765741380003,7.6763739,130.27,130.24,0.7]
[1765741380204,7.6763739,130.27,130.24,3.91905309]
[1765741380602,7.6763739,130.27,130.25,0.7]
[1765741380825,0.72,130.3,130.26,8.4]
[1765741381013,0.72,130.29,130.26,12.31905309]
[1765741381195,0.72,130.29,130.26,8.4]
[1765741382130,7.67577525,130.28,130.26,8.4]
[1765741382309,7.67577525,130.28,130.26,9.1]
[1765741382513,8.39577525,130.28,130.26,9.1]
[1765741383414,22.40554579,130.3,130.26,9.1]
[1765741383415,8.39542588,130.29,130.26,9.1]
[1765741384927,8.39542588,130.29,130.27,0.7]
[1765741385135,0.72,130.29,130.27,0.7]
[1765741385817,7.67472348,130.3,130.27,3.9173917]
[1765741386200,0.72,130.29,130.27,3.9173917]
[1765741386402,0.72,130.29,130.27,0.7]
[1765741387003,0.72,130.29,130.27,3.9173917]
[1765741387199,8.39472348,130.3,130.27,3.9173917]
[1765741387507,20.92125583,130.31,130.28,0.7]
[1765741387702,20.92125583,130.31,130.28,3.9173917]
[1765741388006,21.64125583,130.31,130.28,3.9173917]
[1765741388214,21.64125583,130.31,130.29,0.7]
[1765741390631,8.59416463,130.31,130.29,0.7]
[1765741390936,8.59416463,130.31,130.28,3.9173917]
[1765741391135,0.2,130.31,130.29,0.7]
[1765741391333,0.2,130.31,130.3,3.2173917]
[1765741391706,0.2,130.31,130.3,3.9173917]
[1765741392728,0.2,130.31,130.29,16.77490634]
[1765741393031,0.2,130.31,130.29,19.29229804]
[1765741393330,0.2,130.31,130.29,19.99229804]
[1765741394041,0.2,130.31,130.29,19.29229804]
[1765741394209,0.2,130.31,130.3,11.59198878]
[1765741394904,0.2,130.31,130.3,14.66430338]
[1765741397141,0.2,130.31,130.3,11.59198878]
[1765741397442,0.2,130.31,130.3,14.66430338]
[1765741399525,0.2,130.31,130.3,36.80566264]
[1765741399810,0.2,130.31,130.3,37.57312234]
[1765741402460,0.2,130.33,130.32,22.14135926]
[1765741402757,0.2,130.33,130.32,34.52609288]
[1765741403046,0.2,130.33,130.32,38.29722804]
[1765741404141,0.2,130.33,130.32,45.97064731]
[1765741407861,0.2,130.33,130.32,42.75325561]
[1765741408071,0.2,130.33,130.32,45.97064731]
[1765741409668,0.2,130.33,130.32,45.20330539]
[1765741409954,0.2,130.33,130.32,35.40903733]
[1765741410335,0.2,130.33,130.32,36.11903733]
[1765741410748,0.2,130.33,130.32,35.40903733]
[1765741410749,0.86,130.33,130.32,35.40903733]
[1765741410957,0.2,130.33,130.32,35.40903733]
[1765741411239,0.2,130.33,130.32,27.00903733]
[1765741411462,0.2,130.33,130.32,35.40903733]
[1765741413431,0.86,130.33,130.32,11.6173917]
[1765741413632,0.2,130.33,130.32,19.29081097]
[1765741413934,0.2,130.33,130.32,20.00081097]
[1765741414134,0.2,130.33,130.32,19.29081097]
[1765741414670,0.86,130.33,130.32,19.29081097]
[1765741415460,0.2,130.33,130.32,20.00081097]
[1765741420048,0.2,130.33,130.32,19.99636614]
[1765741424963,0.2,130.33,130.32,23.06797297]
[1765741425272,0.2,130.33,130.32,32.16224103]
[1765741431476,0.2,130.33,130.32,22.35797297]
[1765741433182,0.86,130.33,130.32,19.28636614]
[1765741435591,0.86,130.33,130.32,18.13023672]
[1765741438281,0.86,130.33,130.31,3.07160683]
[1765741438584,0.71,130.32,130.31,7.67363655]
[1765741439201,0.71,130.32,130.31,9.730454]
[1765741440062,0.71,130.32,130.3,16.07425574]
[1765741440259,0.71,130.32,130.3,18.13107319]
[1765741440497,0.71,130.32,130.31,9.73082558]
[1765741441466,0.2,130.33,130.31,9.73082558]
[1765741441666,0.91,130.33,130.32,18.13023672]
[1765741441890,0.91,130.33,130.32,8.4]
[1765741442189,8.5828305,130.33,130.29,2.05681745]
[1765741442370,0.71,130.32,130.3,8.4]
[1765741443791,8.38350584,130.32,130.3,8.4]
[1765741443988,8.38350584,130.32,130.29,2.05681745]
[1765741444172,0.71,130.31,130.29,2.05681745]
[1765741445892,8.38403606,130.31,130.28,10.45681745]
[1765741446069,0.71,130.3,130.29,2.05681745]
[1765741446881,0.71,130.3,130.28,18.13258105]
[1765741449211,0.71,130.3,130.29,9.73175859]
[1765741449501,0.71,130.31,130.29,9.73175859]
[1765741449700,0.71,130.31,130.3,2.05681745]
[1765741450884,7.87296726,130.33,130.3,2.05681745]
[1765741451197,0.71,130.32,130.31,2.05681745]
[1765741451375,0.71,130.32,130.29,7.67494114]
[1765741451578,0.71,130.32,130.3,2.05681745]
[1765741457399,0.71,130.32,130.3,2.05772976]
[1765741458511,0.71,130.32,130.31,10.45772976]
[1765741459704,0.2,130.33,130.31,18.84158552]
[1765741459905,0.71,130.32,130.31,18.13158552]
[1765741460105,0.2,130.33,130.31,18.84158552]
[1765741460302,0.91,130.33,130.31,18.13158552]
[1765741460500,0.91,130.33,130.32,2.05772976]
[1765741464020,0.91,130.33,130.31,18.13158552]
[1765741467497,0.91,130.33,130.32,2.05772976]
[1765741467715,0.91,130.33,130.31,16.07385576]
[1765741468022,0.91,130.33,130.32,2.05772976]
[1765741469295,0.91,130.33,130.31,10.45772976]
[1765741469496,0.72,130.32,130.31,10.45772976]
[1765741472525,0.2,130.33,130.31,10.45772976]
[1765741472823,0.92,130.33,130.31,10.45772976]
[1765741481851,0.92,130.33,130.31,8.4]
[1765741481852,0.72,130.32,130.31,8.4]
[1765741484824,7.87286467,130.33,130.31,8.4]
[1765741485026,8.59286467,130.33,130.31,10.45772976]
[1765741485232,0.72,130.32,130.31,10.45772976]
[1765741486662,8.59286467,130.33,130.31,10.45772976]
[1765741487667,0.72,130.32,130.31,8.4]
[1765741490028,8.59286467,130.33,130.31,8.4]
[1765741490361,0.92,130.33,130.31,10.45772976]
[1765741490544,0.2,130.33,130.31,18.82167645]
[1765741491435,0.72,130.32,130.31,8.4]
[1765741499467,7.87288795,130.33,130.31,8.4]
[1765741499668,8.54288795,130.33,130.31,9.12]
[1765741500137,0.87,130.33,130.31,9.12]
[1765741500464,0.2,130.33,130.31,12.33534676]
[1765741500768,0.87,130.33,130.31,12.33534676]
[1765741501070,0.87,130.33,130.31,9.12]
[1765741501382,0.67,130.32,130.31,8.4]
[1765741511271,0.2,130.33,130.31,12.33534676]
[1765741512175,0.2,130.33,130.31,9.12]
[1765741512844,0.2,130.33,130.31,12.33534676]
[1765741515273,0.2,130.33,130.31,9.12]
[1765741517774,0.2,130.33,130.31,16.07370105]
[1765741517964,0.2,130.33,130.32,0.72]
[1765741518164,0.2,130.33,130.31,31.62439457]
[1765741518478,0.87,130.33,130.3,8.4]
[1765741518674,23.9141295,130.33,130.3,8.4]
[1765741518975,0.67,130.32,130.3,8.4]
[1765741524185,0.67,130.32,130.29,16.07479271]
[1765741524363,8.34386791,130.32,130.29,8.4]
[1765741524971,0.67,130.31,130.29,8.4]
[1765741525376,0.67,130.31,130.29,12.33534676]
[1765741526885,0.67,130.31,130.29,11.61534676]
[1765741528120,8.3440611,130.31,130.29,8.4]
[1765741528391,8.3440611,130.31,130.26,19.98193905]
[1765741528594,23.76944105,130.3,130.26,19.29193905]
[1765741528763,23.76944105,130.3,130.27,0.69]
[1765741529288,0.72,130.3,130.27,0.69]
[1765741529473,0.72,130.3,130.27,3.90534676]
[1765741529665,0.72,130.3,130.27,3.90679344]
[1765741529871,8.3947916,130.3,130.27,3.90679344]
[1765741530791,0.72,130.29,130.27,3.90679344]
[1765741531094,0.72,130.29,130.28,8.4]
[1765741534084,8.39518612,130.29,130.28,8.4]
[1765741536300,0.72,130.29,130.28,8.4]
[1765741543408,23.04944105,130.3,130.28,31.49623157]
[1765741543705,0.2,130.33,130.29,3.90679344]
[1765741544001,0.2,130.33,130.32,3.21679344]
[1765741544172,0.2,130.33,130.32,11.61679344]
[1765741544506,0.2,130.33,130.32,12.30679344]
[1765741544692,0.2,130.33,130.32,20.00888796]
[1765741545079,0.2,130.33,130.32,20.69888796]
[1765741547304,0.2,130.33,130.32,28.37230723]
[1765741547510,0.2,130.33,130.32,20.69888796]
[1765741550803,0.92,130.33,130.32,8.4]
[1765741550993,0.92,130.33,130.3,20.00845014]
[1765741550994,8.5928305,130.33,130.3,20.00845014]
[1765741551194,0.72,130.32,130.3,20.69845014]
[1765741551792,0.72,130.32,130.3,12.30679344]
[1765741552720,0.72,130.32,130.3,11.61679344]
[1765741552882,8.39342566,130.32,130.3,11.61679344]
[1765741554614,0.72,130.31,130.3,8.4]
[1765741554784,0.72,130.31,130.28,3.21679344]
[1765741554983,0.72,130.31,130.28,8.4]
[1765741556212,21.09458288,130.31,130.28,8.4]
[1765741556509,7.67459708,130.3,130.28,8.4]
[1765741556711,8.34459708,130.3,130.28,8.4]
[1765741557017,0.67,130.29,130.28,8.4]
[1765741558917,8.34459708,130.3,130.28,10.45864367]
[1765741559115,7.67459708,130.3,130.28,11.16864367]
[1765741559318,8.34459708,130.3,130.28,11.16864367]
[1765741559915,0.67,130.3,130.28,11.16864367]
[1765741560119,0.67,130.3,130.29,2.05864367]
[1765741560690,8.34429106,130.31,130.29,2.05864367]
[1765741561294,31.39134736,130.32,130.29,2.76864367]
[1765741561493,0.67,130.31,130.28,8.4]
[1765741561725,0.67,130.31,130.28,9.11]
[1765741561908,19.85354818,130.31,130.28,9.11]
[1765741562226,27.52810615,130.31,130.28,8.4]
[1765741562398,0.67,130.3,130.28,8.4]
[1765741562597,0.67,130.3,130.28,10.45864367]
[1765741562803,27.52810615,130.31,130.28,11.16864367]
[1765741563008,0.67,130.3,130.28,10.45864367]
[1765741563209,0.67,130.3,130.28,11.16864367]
[1765741565618,0.67,130.3,130.28,11.16843623]
[1765741569532,0.67,130.3,130.28,18.84417002]
[1765741569733,8.34455797,130.31,130.28,18.84417002]
[1765741570704,8.34455797,130.31,130.29,2.05843623]
[1765741570898,19.18354818,130.32,130.29,2.05843623]
[1765741570899,8.34357561,130.32,130.29,2.76843623]
[1765741571224,0.67,130.31,130.29,2.76843623]
[1765741573238,0.67,130.31,130.29,2.05843623]
[1765741573435,0.67,130.31,130.28,18.13417002]
[1765741573630,0.67,130.31,130.29,0.71]
[1765741574233,0.67,130.31,130.29,2.76843623]
[1765741575638,0.67,130.31,130.29,0.71]
[1765741575839,0.67,130.31,130.29,2.76843623]
[1765741578549,8.34357561,130.32,130.29,2.76843623]
[1765741579128,8.34357561,130.32,130.3,0.71]
[1765741579428,7.67357561,130.32,130.3,2.76843623]
[1765741579625,8.54311247,130.33,130.31,0.71]
[1765741584031,8.54311247,130.33,130.3,2.76843623]
[1765741585634,8.54311247,130.33,130.3,10.44300145]
[1765741585831,0.2,130.33,130.31,2.76843623]
[1765741586016,0.87,130.33,130.31,11.16843623]
[1765741586226,0.2,130.33,130.31,11.16843623]
[1765741586626,0.2,130.33,130.32,0.68]
[1765741588634,0.2,130.33,130.31,11.13843623]
[1765741589034,0.2,130.33,130.31,10.45843623]
[1765741589230,0.2,130.33,130.32,10.4118555]
[1765741599337,0.2,130.33,130.32,19.50612356]
[1765741600957,0.2,130.34,130.33,9.09426806]
[1765741601159,0.2,130.34,130.33,22.29114052]
[1765741601356,0.2,130.34,130.33,29.95796926]
[1765741601556,0.2,130.34,130.33,43.00506046]
[1765741601755,0.2,130.36,130.35,24.19679461]
[1765741601930,0.2,130.36,130.35,32.59679461]
[1765741602127,0.2,130.36,130.35,33.27679461]
[1765741605435,0.2,130.36,130.35,40.94844785]
[1765741611675,0.2,130.36,130.35,41.71561317]
[1765741611861,0.2,130.37,130.36,11.14970341]
[1765741612049,0.2,130.37,130.36,11.82970341]
[1765741613270,0.2,130.37,130.36,19.50076815]
[1765741619278,1e-08,130.37,130.36,19.50076815]
[1765741619485,1e-08,130.38,130.37,9.80426806]
[1765741619774,0.2,130.39,130.37,9.80426806]
[1765741619775,0.2,130.39,130.38,22.14135926]
[1765741620079,0.2,130.4,130.39,10.87801032]
[1765741620246,0.2,130.4,130.39,20.75494029]
[1765741620982,0.2,130.4,130.39,23.82419024]
[1765741621178,0.2,130.4,130.39,11.64494029]
[1765741621380,0.87,130.4,130.39,16.06929979]
[1765741621563,0.87,130.4,130.39,19.27801032]
[1765741638090,0.87,130.4,130.39,19.27956858]
[1765741640872,0.87,130.4,130.37,3.21026879]
[1765741641072,0.67,130.39,130.36,19.28112699]
[1765741641693,0.67,130.39,130.36,16.0708582]
[1765741641897,0.67,130.39,130.36,19.28112699]
[1765741646104,8.33973153,130.39,130.36,8.4]
[1765741646526,0.72,130.38,130.36,8.4]
[1765741647378,0.86,130.4,130.37,3.90026879]
[1765741647586,0.86,130.4,130.39,3.21026879]
[1765741647985,0.86,130.4,130.38,11.61026879]
[1765741648410,0.66,130.39,130.38,11.61026879]
[1765741650914,0.66,130.39,130.38,19.2801568]
[1765741662126,0.2,130.4,130.38,19.2801568]
[1765741662422,0.86,130.4,130.39,3.21026879]
[1765741665241,0.2,130.4,130.38,8.4]
[1765741665408,0.86,130.4,130.38,19.27998035]
[1765741665915,0.66,130.39,130.36,8.4]
[1765741667235,7.66988801,130.38,130.36,8.4]
[1765741668128,0.66,130.37,130.34,10.88232743]
[1765741668312,0.66,130.37,130.34,16.07205864]
[1765741669437,0.66,130.37,130.34,19.28232743]
[1765741670849,0.66,130.37,130.34,19.97232743]
[1765741671334,0.66,130.37,130.34,19.28232743]
[1765741674540,0.66,130.37,130.34,19.28509974]
[1765741674738,0.66,130.37,130.34,19.97509974]
[1765741674933,8.3305476,130.37,130.34,11.6130411]
[1765741675149,8.3305476,130.37,130.34,8.4]
[1765741675451,0.66,130.36,130.34,8.4]
[1765741678759,8.33146748,130.36,130.34,8.4]
[1765741679060,8.33146748,130.36,130.32,11.6130411]
[1765741679260,0.67,130.35,130.32,11.6130411]
[1765741679558,0.67,130.35,130.32,10.45699907]
[1765741679735,0.67,130.35,130.32,8.4]
[1765741680658,8.34222539,130.35,130.32,8.4]
[1765741681246,0.67,130.35,130.32,18.82039107]
[1765741681572,0.67,130.35,130.33,2.74699907]
[1765741681765,0.67,130.35,130.33,2.05699907]
[1765741685473,8.34174321,130.35,130.33,2.05699907]
[1765741686748,7.67047633,130.37,130.33,2.05699907]
[1765741686948,0.67,130.34,130.33,2.05699907]
[1765741688473,7.67047633,130.37,130.33,2.05699907]
[1765741688663,0.67,130.35,130.33,2.05699907]
[1765741689057,0.67,130.35,130.32,18.13039107]
[1765741689265,0.67,130.35,130.32,18.82039107]
[1765741689464,0.67,130.35,130.33,0.69]
[1765741690172,0.67,130.35,130.32,18.82039107]
[1765741690392,8.341744,130.35,130.32,18.82039107]
[1765741692888,0.67,130.34,130.32,18.82039107]
[1765741694464,0.67,130.34,130.32,11.14699907]
[1765741694669,0.67,130.34,130.32,9.09]
[1765741694989,0.67,130.34,130.32,8.4]
[1765741695159,8.34234413,130.34,130.32,8.4]
[1765741695567,0.67,130.33,130.32,8.4]
[1765741698001,7.67234413,130.34,130.32,9.09]
[1765741698002,8.34234413,130.34,130.32,9.09]
[1765741698898,8.34234413,130.34,130.32,8.4]
[1765741703108,8.34234413,130.34,130.32,10.45699907]
[1765741703887,7.67171799,130.35,130.33,2.74699907]
[1765741704292,8.34171799,130.35,130.33,2.74699907]
[1765741704609,8.34171799,130.35,130.33,2.05699907]
[1765741705716,19.84886014,130.36,130.33,2.74699907]